Cogmind - Beta 13 @@@ ROGUE MODE // 2024.04.10 @ 20:02:54 Player: dodpl Result: Destroyed by G-34 Mercenary with Small Laser Performance ------------- Evolutions (1) 500 Regions Visited (3) 600 Robots Destroyed (50) 250 Value Destroyed (1096) 1096 Prototype IDs (2) 40 Alien Tech Used (0) 0 Bonus (0) 0 TOTAL SCORE: 2486 Bonus ------- None Cogmind --------- Core Integrity 0/400 Matter 173/300 Energy 95/100 System Corruption 0% Temperature Hot (225) Movement Core (500) Ox9 Location -9/Materials Parts ------- > --- POWER (2) -------- (None) > --- PROPULSION (2) --- (None) > --- UTILITY (3) ------ Large Storage Unit > --- WEAPON (2) ------- Particle Cannon Particle Cannon > --- INVENTORY (15) --- Light Ion Engine Light Nuclear Core Light Treads Light Treads Improved Aluminum Leg High-capacity Matter Pod (126) Structural Scanner Improved Targeting Computer Power Shielding Hardened Light Armor Plating Particle Cannon Particle Cannon Faulty Advanced Beam Cannon Peak State ------------ > --- POWER ------------ Deuterium Engine Deuterium Engine > --- PROPULSION ------- Improved Aluminum Leg Improved Aluminum Leg > --- UTILITY ---------- Improved Heat Sink Large Storage Unit Improved Terrain Scanner > --- WEAPON ----------- Particle Cannon Particle Cannon > --- INVENTORY -------- Light Ion Engine Light Nuclear Core Light Treads Improved Aluminum Leg High-capacity Matter Pod Structural Scanner Improved Targeting Computer Power Shielding Hardened Light Armor Plating Particle Cannon Particle Cannon Advanced Beam Cannon Rocket Launcher [Rating: 23] Favorites ----------- Power Ion Engine Engine Ion Engine Power Core Light Nuclear Core Propulsion Light Treads Treads Light Treads Leg Improved Aluminum Leg Utility Large Storage Unit Device Improved Terrain Scanner Storage Large Storage Unit Protection Power Shielding Weapon Light Cannon Energy Gun Improved Medium Laser Energy Cannon Particle Cannon Ballistic Gun Light Assault Rifle Ballistic Cannon Light Cannon Launcher Rocket Launcher Build | -11 -10 -10 -9 ------- Run | Yrd Mat Min Mat Slots Evolved 2 | . . . 2 Power 1 | . . . 1 Propulsion . | . . . . Utility 1 | . . . 1 Weapon . | . . . . Parts Attached 47 | 7 8 9 23 Power 6 | 1 . 1 4 Engine 5 | 1 . . 4 Core 1 | . . 1 . Reactor . | . . . . Propulsion 6 | 2 2 . 2 Treads 4 | 2 2 . . Leg 2 | . . . 2 Wheel . | . . . . Hover . | . . . . Flight . | . . . . Utility 6 | 1 2 . 3 Device 2 | . . . 2 Storage 2 | 1 1 . . Processor . | . . . . Hackware . | . . . . Protection 2 | . 1 . 1 Artifact . | . . . . Weapon 29 | 3 4 8 14 Energy Gun 1 | . . . 1 Energy Cannon 6 | . . . 6 Ballistic Gun 3 | 3 . . . Ballistic Cannon 14 | . 4 5 5 Launcher 5 | . . 3 2 Special Weapon . | . . . . Impact Weapon . | . . . . Slashing Weapon . | . . . . Piercing Weapon . | . . . . Special Melee Weapon . | . . . . Unidentified Prototypes 2 | . . . 2 Parts Lost 7 | . . . 7 Power 2 | . . . 2 Propulsion 2 | . . . 2 Utility 2 | . . . 2 Weapon 1 | . . . 1 Highest Loss Streak 7 | . . . 7 To Critical Strikes . | . . . . Average Slot Usage (%) 97 | . 98 98 95 Engine 13 | . 14 7 16 Core 3 | . . 6 4 Treads 18 | . 27 28 5 Leg 6 | . . . 14 Device 4 | . . . 11 Storage 12 | . 14 14 11 Protection 11 | . 13 14 9 Energy Cannon 2 | . . . 5 Ballistic Gun 1 | . 5 . . Ballistic Cannon 20 | . 22 25 15 Naked Turns . | . . . . Heaviest Build 52 | 13 32 33 52 Greatest Support 40 | 40 40 40 40 Greatest Overweight (x) 14 | . . . 14 Average Overweight (x) . | . . . 1 Largest Inventory Capacity 15 | 8 15 15 15 Average Capacity 13 | 7 9 15 15 Most Carried 15 | 4 8 10 15 Average Carried 9 | 1 6 9 11 Final Capacity 15 | 8 15 15 15 Final Carried 13 | 4 8 10 13 Class Distribution -------------------- 100% | Mutant Dominant Class ---------------- Mutant | -10/Materials Mutant | -10/Mines Mutant | -9/Materials Resources | -11 -10 -10 -9 ----------- Run | Yrd Mat Min Mat Matter Collected 1245 | 271 209 380 385 Remotely . | . . . . Salvage Created 1232 | 113 274 288 557 Parts 92 | 7 23 24 38 Haulers Intercepted 1 | . 1 . . Recyclers Shooed . | . . . . Parts Field Recycled . | . . . . Retrieved Matter . | . . . . Parts Self-Destructed . | . . . . Prevented . | . . . . Kills | -11 -10 -10 -9 ------- Run | Yrd Mat Min Mat Combat Hostiles Destroyed 37 | . 12 7 18 Guns 8 | . 8 . . Cannons 26 | . 4 5 17 AOE 3 | . . 2 1 Classes Destroyed 9 | 3 4 . 2 Worker 4 | 1 1 2 . Tunneler 3 | 1 . 2 . Hauler 1 | . 1 . . Recycler 2 | 1 . 1 . Operator 1 | . . . 1 Watcher 2 | . 1 . 1 Swarmer 16 | . 9 3 4 Grunt 15 | . 3 4 8 Sentry 6 | . . . 6 Best Kill Streak 5 | 2 4 5 4 Combat Bots Only 5 | . 4 5 4 Max Kills in Single Turn 3 | 1 1 3 2 Gunslinging . | . . . . Exploded 2 | . . 2 1 Melee . | . . . . Uniques/NPCs Destroyed . | . . . . Combat | -11 -10 -10 -9 -------- Run | Yrd Mat Min Mat Hostile Shots Fired 206 | . 36 7 163 Missed 45 | . 12 3 30 Damage Taken 1779 | . 216 46 1517 Core 451 | . 47 . 404 Absorbed by Shields . | . . . . Redirected to Shielding 2 | . 2 . . Core Remaining (%) 90 | 100 . 81 . Volleys Fired 115 | 6 28 17 64 Largest 2 | 2 2 2 2 Hottest 136 | 40 70 70 136 Shots Fired 196 | 12 56 29 99 Gun 40 | 12 28 . . Cannon 151 | . 28 26 97 Launcher 5 | . . 3 2 Special . | . . . . Kinetic 141 | 12 56 26 47 Thermal 50 | . . . 50 Explosive 5 | . . 3 2 Electromagnetic . | . . . . Robot Hit Streak 9 | 2 7 4 9 Robot Miss Streak 4 | 1 3 3 4 Penetration Max . | . . . . Secondary Targets 2 | . 2 . . Max Gunslinging Chain 1 | . 1 . . Shots Hit Robots 104 | 5 29 13 57 Core Hits 58 | 4 17 14 23 Critical Kills . | . . . . Critical Parts Destroyed . | . . . . Critical Strikes 4 | . . 2 2 Blast 4 | . . 2 2 Melee Attacks . | . . . . Impact . | . . . . Slashing . | . . . . Piercing . | . . . . Sneak Attacks . | . . . . Combat Hostiles . | . . . . Follow-up Attacks . | . . . . Damage Inflicted 2129 | 55 404 348 1322 Guns 239 | 55 184 . . Cannons 1685 | . 220 232 1233 Explosions 204 | . . 116 88 Melee . | . . . . Ramming 1 | . . . 1 Kinetic 1330 | 55 404 232 639 Thermal 594 | . . . 594 Explosive 204 | . . 116 88 Electromagnetic . | . . . . Impact . | . . . . Slashing . | . . . . Piercing . | . . . . Highest Corruption 1 | . 1 1 . Average Corruption 1 | . 1 1 . Corruption Purged . | . . . . Corruption Blocked . | . . . . Effects 8 | . 5 3 . Message Errors 2 | . 1 1 . Heat Flow Errors 1 | . 1 . . Data Loss (minor) 1 | . . 1 . Data Loss (major) 2 | . 1 1 . Misfires 1 | . 1 . . Weapon Failures 1 | . 1 . . Overload Shots . | . . . . Overflow Damage 6 | . . . 6 Projectiles 6 | . . . 6 Explosions . | . . . . Melee . | . . . . Knockbacks 5 | . . 1 4 Impact . | . . . . Kinetic 5 | . . 1 4 Secondary . | . . . . Self-Inflicted Damage 14 | . . 14 . Shots 2 | . . 2 . Rammed . | . . . . Targets Rammed 1 | . . . 1 Kicked 1 | . . . 1 Crushed . | . . . . Highest Temperature 619 | . 202 33 619 Average Temperature 137 | . 33 12 170 Received Heat Transfer 555 | . 36 6 513 Effects 17 | . . . 17 Shutdowns 2 | . . . 2 Energy Bleed 3 | . . . 3 Interference 4 | . . . 4 Matter Decay 2 | . . . 2 Short Circuit 2 | . . . 2 Damage (minor) 1 | . . . 1 Damage (major) 3 | . . . 3 Siege Activations . | . . . . Robots Corrupted . | . . . . Combat Hostiles . | . . . . Parts Fried . | . . . . Impact Corruptions . | . . . . Robots Melted . | . . . . Combat Hostiles . | . . . . Parts Melted . | . . . . Heat Transferred 1073 | . . . 1073 Parts Sabotaged . | . . . . Parts Stolen . | . . . . Parts Stripped . | . . . . Power Chain Reactions . | . . . . Alert | -11 -10 -10 -9 ------- Run | Yrd Mat Min Mat Peak Influence 318 | 15 318 223 253 Initial 26 | . 9 24 26 Average 126 | 3 195 59 128 Maximum Alert Level 1 | . 1 1 1 Low Security (%) 67 | 100 32 95 72 Level 1 32 | . 67 4 27 Level 2 . | . . . . Level 3 . | . . . . Level 4 . | . . . . Level 5 . | . . . . High Security . | . . . . Max Security . | . . . . Squads Dispatched 4 | . 1 . 3 Investigation 2 | . 1 . 1 Extermination . | . . . . Reinforcement 2 | . . . 2 Assault . | . . . . Garrison . | . . . . Intercept . | . . . . Searches Triggered . | . . . . Construction Impeded . | . . . . Haulers Reinforced . | . . . . Active Scanning Responses . | . . . . Cargo Convoy Interrupts . | . . . . Stealth | -11 -10 -10 -9 --------- Run | Yrd Mat Min Mat Distress Signals 3 | . 2 . 1 Communications Jammed . | . . . . Distress Signals . | . . . . Times Spotted 50 | . 17 6 27 Peak Tracking Total 8 | . 4 3 8 Tactical Retreats 3 | . 2 . 1 Traps | -11 -10 -10 -9 ------- Run | Yrd Mat Min Mat Traps Triggered 3 | . 2 . 1 Indirectly . | . . . . Trap Hack Attempts . | . . . . Triggered . | . . . . Disarmed . | . . . . Reprogrammed 6 | . 6 . . Reused . | . . . . Traps Extracted . | . . . . Installed . | . . . . Triggered . | . . . . Machines | -11 -10 -10 -9 ---------- Run | Yrd Mat Min Mat Machines Disabled 3 | . . 2 1 Max in Single Turn 2 | . . 2 1 Machines Repaired . | . . . . Machines Dismantled . | . . . . Machines Sabotaged . | . . . . Overloaded Fab Kills . | . . . . Hacking | -11 -10 -10 -9 --------- Run | Yrd Mat Min Mat Machines Accessed 6 | . 4 . 2 Terminals 6 | . 4 . 2 Fabricators . | . . . . Repair Stations . | . . . . Recycling Units . | . . . . Scanalyzers . | . . . . Garrison Access . | . . . . Total Hacks 15 | . 10 . 5 Successful 5 | . 4 . 1 Failed 10 | . 6 . 4 Catastrophic 1 | . . . 1 Database Lockouts . | . . . . Manual . | . . . . Terminals 15 | . 10 . 5 Fabricators . | . . . . Repair Stations . | . . . . Recycling Units . | . . . . Scanalyzers . | . . . . Garrison Access . | . . . . Terminal Hacks 5 | . 4 . 1 Locate Traps 1 | . 1 . . Reprogram Traps 1 | . 1 . . Maintenance Status 1 | . 1 . . Hauler Manifests 1 | . . . 1 Registered Components 1 | . 1 . . Fabricator Hacks . | . . . . Repair Station Hacks . | . . . . Recycling Unit Hacks . | . . . . Scanalyzer . | . . . . Garrison Access Hacks . | . . . . Unauthorized Hacks . | . . . . Terminals . | . . . . Fabricators . | . . . . Repair Stations . | . . . . Recycling Units . | . . . . Scanalyzers . | . . . . Garrison Access . | . . . . Data Cores Recovered . | . . . . Used . | . . . . Hacking Detections 5 | . 4 . 1 Full Trace Events 3 | . 3 . . Feedback Events . | . . . . Feedback Blocked . | . . . . Robot Schematics Acquired . | . . . . Robots Built . | . . . . Authchips . | . . . . Time . | . . . . Total Robot Build Rating . | . . . . Part Schematics Acquired . | . . . . Parts Built . | . . . . Authchips . | . . . . Time . | . . . . Total Part Build Rating . | . . . . Parts Repaired . | . . . . Time . | . . . . Parts Recycled . | . . . . Recycled Matter . | . . . . Retrieved Matter . | . . . . Retrieved Components . | . . . . Parts Scanalyzed . | . . . . Part Schematics Acquired . | . . . . Parts Damaged . | . . . . Bothacking | -11 -10 -10 -9 ------------ Run | Yrd Mat Min Mat Used RIF Installer . | . . . . Robots Hacked . | . . . . Non-combat . | . . . . Combat . | . . . . Robot Hacks Applied . | . . . . Relay Couplers Released . | . . . . Fabnet Peak Effective % . | . . . . Robots Rewired . | . . . . Allies Hacked . | . . . . Hacks Repelled . | . . . . Allies | -11 -10 -10 -9 -------- Run | Yrd Mat Min Mat Total Allies . | . . . . Largest Group . | . . . . Highest-Rated Group . | . . . . Highest-Rated Ally . | . . . . Total Orders . | . . . . Ally Attacks . | . . . . Total Damage . | . . . . Kills . | . . . . Allies Corrupted . | . . . . Allies Melted . | . . . . Intel | -11 -10 -10 -9 ------- Run | Yrd Mat Min Mat Robot Analysis Total . | . . . . Derelict Logs Recovered 2 | . . 2 . Drone Launches . | . . . . Drone Recoveries . | . . . . Exploration | -11 -10 -10 -9 ------------- Run | Yrd Mat Min Mat Turns Passed 2729 | 102 854 705 1068 Spaces Moved 1320 | 48 462 401 409 Core 8 | 4 . . 4 Treads 1013 | 44 462 401 106 Legs 299 | . . . 299 Wheels . | . . . . Hover . | . . . . Flight . | . . . . Fastest Speed 50 | 50 160 160 160 Average Speed 171 | 150 160 160 199 Slowest Speed 750 | 160 160 160 750 Overloaded Moves . | . . . . Propulsion Burnouts . | . . . . Robots Hopped . | . . . . Cave-ins Triggered . | . . . . Exploration Rate (%) 51 | 5 73 96 32 Regions Visited 3 Branch Regions 1 Pre-discovered Areas . | . . . . Known Exits Taken . | . . . . Unknown Exits Taken 3 | 1 1 1 . Scrap Searched 1 | . . 1 . Spaces Dug . | . . . . Terrain Destroyed 39 | . . 20 19 Melee . | . . . . Projectile 1 | . . . 1 AOE 38 | . . 20 18 Terrain Rammed . | . . . . Walls Destroyed . | . . . . Machines Disabled . | . . . . Actions | -11 -10 -10 -9 --------- Run | Yrd Mat Min Mat Total 1580 | 63 523 433 561 Wait 47 | . 12 2 33 Move 1317 | 47 461 400 409 Hop . | . . . . Pick Up 27 | 3 8 3 13 Fast Attach 19 | 6 5 . 8 Attach 7 | . . 1 6 Detach 4 | . . 1 3 Swap 21 | 1 3 8 9 Drop 22 | . 6 1 15 Fire 115 | 6 28 17 64 Melee . | . . . . Ram . | . . . . Kick 1 | . . . 1 Crush . | . . . . Escape Stasis . | . . . . Rewire . | . . . . Trap . | . . . . Miscellaneous . | . . . . Route ------- -11/Scrapyard -10/Materials (discovered 2 exits: *Mat / [*Min]) -10/Mines (discovered 2 exits: *Mat x2) -9/Materials (discovered 1 exit: [*Mat]) History --------- Turn | Location | Event 5 | -11/Scrapyard | Discovered new exit (range 14) 103 | -11/Scrapyard | Entered Materials 261 | -10/Materials | Discovered new exit (range 10) 317 | -10/Materials | Build established: Mutant 892 | -10/Materials | Discovered new exit (range 13) 957 | -10/Materials | Entered Mines 979 | -10/Mines | Received a Rocket Launcher from a helpful Derelict 1236 | -10/Mines | Discovered new exit (range 15) 1257 | -10/Mines | Learned Materials security intel 1495 | -10/Mines | Discovered new exit (range 5) 1569 | -10/Mines | Learned 4 Materials zone layouts 1662 | -10/Mines | Entered Materials 1662 | -9/Materials | Evolved 2 slots: Power x1, Utility x1 2381 | -9/Materials | Discovered new exit (range 16) 2682 | -9/Materials | Core integrity fell below 50% 2702 | -9/Materials | Core integrity fell below 20% 2730 | -9/Materials | Destroyed by G-34 Mercenary with Small Laser Last Messages --------------- Overheating: Short circuit. Deuterium Engine destroyed. K-01 Serf cleans the Fusion Modulator. Destroyed Flight Unit. Destroyed Lgt. Ion Engine. Overheating: Energy bleed (-10). M-13 Machinist repairs Aluminum Leg. K-01 Serf cleans the Fusion Modulator. S-10 Pest destroyed. Overheating: System interference. Particle Cannon temporarily disabled. Overheating: Particle Cannon damaged (-26). K-01 Serf cleans the Fusion Modulator. Particle Cannon broken. Overheating: Short circuit. K-01 Serf cleans the Fusion Modulator. R-06 Scavenger collects Ion Engine. M-13 Machinist fits Backup Power I on S-10 Pest. K-01 Serf cleans the Fusion Modulator. [Achievement: First Step to Greatness] Map ----- +----------------------------------------------------+ | ??# #??????#???????# ## #?#??#?????? | | ??###### ###??????######??# ###########?########## | | #??????####???????? ??# #?#????#?????# # | | ??????#??????#????? """ ?# #???#???#????# # < | | ?????????????###?# """ ?# #?#??????????# # | | ????????#?#????#?# """ # ###########??# """ + | | ???#????????##???# # ! #?### """ # % | | ????#?????????#??# + #???# """ # | | ???#? ???????????# # "" #?#?# # | | ?????????????#??## "T" # "Y #?#?####### | | ?????????????????# """ ?# "" ##??# T # | | ??#???????????????#######?# #???# # | | ???????????????????????#??# #???# + | | ???????????????????????#??# """ #?### / # | | ????????????????##?######## """ #??# ! # | | ??????????????#???## # """ #??## / # | | ???????????????#???# """ # ##### # | | ???????????????#??## """ #%! #???####### | | ????????????? ?? ?# """ # ] #???#?????# | | ???????????????????# # ]] ########### | | ???????????????????# """ # ]] | | ???????????????????# """ k | | ???????????????????# """r# | | ???????????? #?? # m k# ############ ## | | ??????????????## + """s# ##???????### #? | | ???????????????# # """@# #?????###??#! *!!#? | | ???????????????## ?# """g# #??????#???#!! *!!#? | | ???????????????????# bs=# ##?#??#????########? | | ???????????????????######## #??#?#???#?????????? | | ???????????? ?????????#???# #?????#????????#???? | | ??????????????????????????# ##?#???????#???????? | | #???# ???????#?#?????# #?##?##?????????##?? | | #???#"" ?? ????????????# #?????#####????????? | | #???#" ????#??????????# #????? #?????#??? | | ######## ????#?????????? #? ??? #??????#?? | | # # ???? ??????#??? #????? #????????? | | # """ + ??????T???????? #????? #????????? | | # """ # ?????????#???? #??""? #????????? | | # """ # ?????????????? #????? #????????? | | # # ?????????#???? % #????? #????????? | | # # ??????????????## * +????? #????????? | | ######## ???????????????? ??????#############? | | #??????# ???????????????? ??????#?# #? | | ###???## ?????????????????????????#?# #? | | ##### ?????????????????????????### #? | | ????????????????????????? # #? | | ????????????????????????? + #? | | ????????????????????????? # #? | | ##### ?????????????????????????# # #? | | #+#########?????????????????????????# # #? | +----------------------------------------------------+ Best States ------------- Heat Dissipation 42 Energy Generation 23 Energy Capacity 450 Matter Stores 300 Matter Capacity 300 Sight Range 16 Terrain Scan Range 16 Terrain Scan Density 10 Armor Coverage 150 Power Shielding 33 Evasion (%) 40 Recoil Reduction 2 Item Schematics ----------------- None Robot Schematics ------------------ None Fabricated ------------ Nothing Alien Tech Used ----------------- None Achievements -------------- First Step to Greatness Shopping List Challenges ------------ None Game ------ Seed NavigationStealthRouter Manual? 0 Play Time 00:24:08 Cumulative 0.9 hours Start 2024.04.10 @ 19:36:04 End 2024.04.10 @ 20:02:54 Sessions 1 Manual Loads 0 Difficulty Rogue Special Mode None Game No. 7 Rogue 7 Adventurer 0 Explorer 0 Win Type - Total 0 Types 0/0/0/0/0/0/0/0/0 Lore% 5 Gallery% 8 Achievement% 6 Wizard Run 0 Options --------- Layout 1 ASCII 0 Keyboard 0 Movement Mouse Keybinds 0 Fullscreen 1 Font 24/Smallcaps Map View 50x35 Zoom Use 0% Tactical HUD 0 Map Filters NONE Filters NONE Steam 1 RUN: bddcc032-1aeb-488d-aa3e-1b1eeba8b2df